fUSD/lending_fUSD_20260410
["ID","MTS","AMOUNT","RATE_DAILY","PERIOD"]
[420223568,1775799516743,-500.0,0.00046506,120]
[420223569,1775799516819,-500.0,0.00046506,120]
[420223570,1775799516952,-195.46589279,0.00046506,120]
[420223571,1775799517081,-1715.68,0.00046506,120]
[420223572,1775799517162,-1715.68,0.00046506,120]
[420223573,1775799517225,-1715.68,0.00046506,120]
[420223574,1775799517365,-1715.68,0.00046506,120]
[420223575,1775799517472,-1715.68,0.00046506,120]
[420223576,1775799517548,-1715.68,0.00046506,120]
[420223577,1775799517627,-1715.68,0.00046506,120]
[420223578,1775799517695,-1715.68,0.00046506,120]
[420223579,1775799518226,-1715.68,0.00046506,120]
[420223580,1775799518300,-1715.68,0.00046506,120]
[420223581,1775799518367,-1715.68,0.00046506,120]
[420223582,1775799518435,-1715.68,0.00046506,120]
[420223583,1775799518498,-1715.68,0.00046506,120]
[420223584,1775799518563,-1715.68,0.00046506,120]
[420223585,1775799518633,-1715.68,0.00046506,120]
[420223586,1775799518745,-1715.68,0.00046506,120]
[420223587,1775799518844,-1715.68,0.00046506,120]
[420223588,1775799518950,-1715.68,0.00046506,120]
[420223589,1775799519050,-1715.68,0.00046506,120]
[420223590,1775799519153,-1715.68,0.00046506,120]
[420223591,1775799519230,-1715.68,0.00046506,120]
[420223592,1775799519297,-1715.68,0.00046506,120]
[420223593,1775799519373,-1715.68,0.00046506,120]
[420223594,1775799519443,-1715.71403324,0.00046506,120]
[420223595,1775799519504,-500.0,0.00046506,120]
[420223596,1775799519570,-500.0,0.00046506,120]
[420223597,1775799519629,-500.0,0.00046506,120]
[420223598,1775799519689,-500.0,0.00046506,120]
[420223599,1775799519762,-500.0,0.00046506,120]
[420223600,1775799519831,-298.34476572,0.00046506,120]
[420223601,1775799519908,-500.0,0.00046506,120]
[420223602,1775799519970,-500.0,0.00046506,120]
[420223603,1775799520052,-500.0,0.00046506,120]
[420223604,1775799520123,-500.0,0.00046506,120]
[420223605,1775799520200,-500.0,0.00046506,120]
[420223606,1775799520266,-500.0,0.00046506,120]
[420223607,1775799520336,-500.0,0.00046506,120]
[420223608,1775799520406,-500.0,0.00046506,120]
[420223609,1775799520469,-500.0,0.00046506,120]
[420223610,1775799520543,-500.0,0.00046506,120]
[420223611,1775799520618,-500.0,0.00046506,120]
[420223612,1775799520687,-500.0,0.00046506,120]
[420223613,1775799520781,-226.7777288,0.00046506,120]
[420223614,1775799520875,-622.85704325,0.00046506,120]
[420223615,1775799520969,-500.0,0.00046506,120]
[420223616,1775799521045,-500.0,0.00046506,120]
[420223617,1775799521108,-500.0,0.00046506,120]
[420223618,1775799521179,-438.74307421,0.00046506,120]
[420223619,1775799521236,-500.0,0.00046506,120]
[420223620,1775799521295,-500.0,0.00046506,120]
[420223621,1775799521356,-500.0,0.00046506,120]
[420223622,1775799521416,-500.0,0.00046506,120]
[420223623,1775799521476,-500.0,0.00046506,120]
[420223624,1775799521542,-500.0,0.00046506,120]
[420223625,1775799521611,-500.0,0.00046506,120]
[420223626,1775799521675,-500.0,0.00046506,120]
[420223627,1775799521752,-500.0,0.00046506,120]
[420223628,1775799521816,-500.0,0.00046506,120]
[420223629,1775799521891,-500.0,0.00046506,120]
[420223630,1775799521951,-500.0,0.00046506,120]
[420223631,1775799522019,-500.0,0.00046506,120]
[420223632,1775799522082,-600.77809114,0.00046506,120]
[420223633,1775799522154,-412.30832209,0.00046506,120]
[420223634,1775799522216,-500.0,0.00046506,120]
[420223635,1775799522278,-581.90920748,0.00046506,120]
[420223636,1775799522353,-500.0,0.00046506,120]
[420223637,1775799522417,-500.0,0.00046506,120]
[420223638,1775799522481,-500.0,0.00046506,120]
[420223639,1775799522542,-500.0,0.00046506,120]
[420223640,1775799522600,-500.0,0.00046506,120]
[420223641,1775799522662,-500.0,0.00046506,120]
[420223642,1775799522727,-500.0,0.00046506,120]
[420223643,1775799522785,-500.0,0.00046506,120]
[420223644,1775799522843,-300.3151594,0.00046506,120]
[420223645,1775799522912,-866.31,0.00046506,120]
[420223646,1775799522975,-866.31,0.00046506,120]
[420223647,1775799523057,-866.31,0.00046506,120]
[420223648,1775799523119,-866.31,0.00046506,120]
[420223649,1775799523197,-866.31,0.00046506,120]
[420223650,1775799523278,-866.31,0.00046506,120]
[420223651,1775799523349,-866.31,0.00046506,120]
[420223652,1775799523435,-866.31,0.00046506,120]
[420223653,1775799523524,-866.31,0.00046506,120]
[420223654,1775799523645,-866.31,0.00046506,120]
[420223655,1775799523729,-866.31,0.00046506,120]
[420223656,1775799523834,-866.31,0.00046506,120]
[420223657,1775799523905,-866.31,0.00046506,120]
[420223658,1775799523982,-866.31,0.00046506,120]
[420223659,1775799524044,-866.31,0.00046506,120]
[420223660,1775799524117,-866.31,0.00046506,120]
[420223661,1775799524188,-866.31,0.00046506,120]
[420223662,1775799524255,-866.31,0.00046506,120]
[420223663,1775799524327,-866.31,0.00046506,120]
[420223664,1775799524430,-866.31,0.00046506,120]
[420223665,1775799524516,-866.31,0.00046506,120]
[420223666,1775799524614,-866.31,0.00046506,120]
[420223667,1775799524703,-866.31,0.00046506,120]
[420223668,1775799524770,-866.42070903,0.00046506,120]
[420223669,1775799524850,-500.0,0.00046506,120]
[420223670,1775799524953,-589.31597624,0.00046506,120]
[420223671,1775799525024,-602.04031441,0.00046506,120]
[420223672,1775799525089,-500.0,0.00046506,120]
[420223673,1775799525153,-500.0,0.00046506,120]
[420223674,1775799525221,-500.0,0.00046506,120]
[420223675,1775799525292,-500.0,0.00046506,120]
[420223676,1775799525360,-500.0,0.00046506,120]
[420223677,1775799525443,-500.0,0.00046506,120]
[420223678,1775799525503,-500.0,0.00046506,120]
[420223679,1775799525573,-550.49061465,0.00046506,120]
[420223680,1775799525632,-500.0,0.00046506,120]
[420223681,1775799525693,-262.18996354,0.00046506,120]
[420223682,1775799525758,-699947.0,0.00046506,30]
[420223683,1775799525818,-500.0,0.00046506,120]
[420223684,1775799525897,-500.0,0.00046506,120]
[420223685,1775799525962,-500.0,0.00046506,120]
[420223686,1775799526035,-500.0,0.00046506,120]
[420223687,1775799526107,-500.0,0.00046506,120]
[420223688,1775799526186,-412.63015343,0.00046506,120]
[420223689,1775799526264,-500.0,0.00046506,120]
[420223690,1775799526343,-500.0,0.00046506,120]
[420223691,1775799526415,-500.0,0.00046506,120]
[420223692,1775799526501,-642.70373703,0.00046506,120]
[420223693,1775799526586,-500.0,0.00046506,120]
[420223694,1775799526664,-500.0,0.00046506,120]
[420223695,1775799526726,-635.25680765,0.00046506,120]
[420223696,1775799526785,-500.0,0.00046506,120]
[420223697,1775799527166,-500.0,0.00046506,120]
[420223698,1775799527282,-500.0,0.00046506,120]
[420223699,1775799527355,-500.0,0.00046506,120]
[420223700,1775799527440,-378.8456208,0.00046506,120]
[420223701,1775799527527,-500.0,0.00046506,120]
[420223702,1775799527616,-500.0,0.00046506,120]
[420223703,1775799527697,-500.0,0.00046506,120]
[420223704,1775799527769,-575.82377258,0.00046506,120]
[420223705,1775799527842,-500.0,0.00046506,120]
[420223706,1775799527904,-569.32849067,0.00046506,120]
[420223707,1775799527976,-500.0,0.00046506,120]
[420223708,1775799528035,-500.0,0.00046506,120]
[420223709,1775799528111,-641.52162146,0.00046506,120]
[420223710,1775799528170,-575.25812912,0.00046506,120]
[420223711,1775799528229,-500.0,0.00046506,120]
[420223712,1775799528290,-500.0,0.00046506,120]
[420223713,1775799528350,-500.0,0.00046506,120]
[420223714,1775799528420,-500.0,0.00046506,120]
[420223715,1775799528491,-210.152895,0.00046506,120]
[420223716,1775799528556,-500.0,0.00046506,120]
[420223717,1775799528636,-500.0,0.00046506,120]
[420223718,1775799528714,-500.0,0.00046506,120]
[420223719,1775799528788,-587.96181131,0.00046506,120]
[420223720,1775799528850,-500.0,0.00046506,120]
[420223721,1775799528915,-500.0,0.00046506,120]
[420223722,1775799528985,-579.79598337,0.00046506,120]
[420223723,1775799529059,-500.0,0.00046506,120]
[420223724,1775799529131,-500.0,0.00046506,120]
[420223725,1775799529201,-500.0,0.00046506,120]
[420223726,1775799529264,-500.0,0.00046506,120]
[420223727,1775799529343,-500.0,0.00046506,120]
[420223728,1775799529415,-567.96749577,0.00046506,120]
[420223729,1775799529486,-500.0,0.00046506,120]
[420223730,1775799529559,-500.0,0.00046506,120]
[420223731,1775799529620,-500.0,0.00046506,120]
[420223732,1775799529684,-500.0,0.00046506,120]
[420223733,1775799529746,-500.0,0.00046506,120]
[420223734,1775799529810,-500.0,0.00046506,120]
[420223735,1775799529871,-549.04083409,0.00046506,120]
[420223736,1775799529932,-500.0,0.00046506,120]
[420223737,1775799529994,-579.79107627,0.00046506,120]
[420223738,1775799530056,-500.0,0.00046506,120]
[420223739,1775799530117,-500.0,0.00046506,120]
[420223740,1775799530185,-500.0,0.00046506,120]
[420223741,1775799530257,-565.91259175,0.00046506,120]
[420223742,1775799530336,-500.0,0.00046506,120]
[420223743,1775799530426,-500.0,0.00046506,120]
[420223744,1775799530505,-500.0,0.00046506,120]
[420223745,1775799530588,-500.0,0.00046506,120]
[420223746,1775799530674,-500.0,0.00046506,120]
[420223747,1775799530750,-500.0,0.00046506,120]
[420223748,1775799530829,-500.0,0.00046506,120]
[420223749,1775799530912,-512.58614825,0.00046506,120]
[420223750,1775799530977,-500.0,0.00046506,120]
[420223751,1775799531051,-500.0,0.00046506,120]
[420223752,1775799531118,-500.0,0.00046506,120]
[420223753,1775799531185,-500.0,0.00046506,120]
[420223754,1775799531247,-500.0,0.00046506,120]
[420223755,1775799531319,-500.0,0.00046506,120]
[420223756,1775799531395,-500.0,0.00046506,120]
[420223757,1775799531483,-500.0,0.00046506,120]
[420223758,1775799531606,-500.0,0.00046506,120]
[420223759,1775799531696,-500.0,0.00046506,120]
[420223760,1775799531762,-480.76272041,0.00046506,120]
[420223761,1775799531831,-576.55152926,0.00046506,120]
[420223762,1775799531899,-500.0,0.00046506,120]
[420223763,1775799531957,-500.0,0.00046506,120]
[420223764,1775799532020,-612.50409612,0.00046506,120]
[420223765,1775799532082,-500.0,0.00046506,120]
[420223766,1775799532145,-500.0,0.00046506,120]
[420223767,1775799532208,-500.0,0.00046506,120]
[420223768,1775799532275,-253.62210112,0.00046506,120]
[420223769,1775799532344,-500.0,0.00046506,120]
[420223770,1775799532411,-500.0,0.00046506,120]
[420223771,1775799532473,-500.0,0.00046506,120]
[420223772,1775799532545,-500.0,0.00046506,120]
[420223773,1775799532607,-500.0,0.00046506,120]
[420223774,1775799532670,-500.0,0.00046506,120]
[420223775,1775799532737,-591.24497488,0.00046506,120]
[420223776,1775799532806,-541.10008498,0.00046506,120]
[420223777,1775799532870,-542.07333363,0.00046506,120]
[420223778,1775799532943,-500.0,0.00046506,120]
[420223779,1775799533005,-500.0,0.00046506,120]
[420223780,1775799533091,-500.0,0.00046506,120]
[420223781,1775799533163,-500.0,0.00046506,120]
[420223782,1775799533230,-500.0,0.00046506,120]
[420223783,1775799533304,-500.0,0.00046506,120]
[420223784,1775799533378,-500.0,0.00046506,120]
[420223785,1775799533460,-500.0,0.00046506,120]
[420223786,1775799533533,-541.46023093,0.00046506,120]
[420223787,1775799533605,-500.0,0.00046506,120]
[420223788,1775799533672,-500.0,0.00046506,120]
[420223789,1775799533739,-500.0,0.00046506,120]
[420223790,1775799533831,-500.0,0.00046506,120]
[420223791,1775799533924,-500.0,0.00046506,120]
[420223792,1775799534007,-500.0,0.00046506,120]
[420223793,1775799534070,-500.0,0.00046506,120]
[420223794,1775799534141,-500.0,0.00046506,120]
[420223795,1775799534201,-615.52817335,0.00046506,120]
[420223796,1775799534261,-500.0,0.00046506,120]
[420223797,1775799534331,-500.0,0.00046506,120]
[420223798,1775799534407,-500.0,0.00046506,120]
[420223799,1775799534540,-500.0,0.00046506,120]
[420223800,1775799534667,-500.0,0.00046506,120]
[420223801,1775799534742,-500.0,0.00046506,120]
[420223802,1775799534813,-500.0,0.00046506,120]
[420223803,1775799534898,-500.0,0.00046506,120]
[420223804,1775799534996,-500.0,0.00046506,120]
[420223805,1775799535118,-500.0,0.00046506,120]
[420223806,1775799535265,-507.29246796,0.00046506,120]
[420223807,1775799535327,-500.0,0.00046506,120]
[420223808,1775799535402,-500.0,0.00046506,120]
[420223809,1775799535465,-500.0,0.00046506,120]
[420223810,1775799535527,-500.0,0.00046506,120]
[420223811,1775799535591,-500.0,0.00046506,120]
[420223812,1775799535652,-500.0,0.00046506,120]
[420223813,1775799535715,-500.0,0.00046506,120]
[420223814,1775799536070,-500.0,0.00046506,120]
[420223815,1775799536157,-500.0,0.00046506,120]
[420223816,1775799536227,-643.62983513,0.00046506,120]
[420223817,1775799536295,-500.0,0.00046506,120]
[420223818,1775799536376,-500.0,0.00046506,120]
[420223819,1775799536450,-170.87448966,0.00046506,120]
[420223820,1775799536525,-217.34376729,0.00046506,120]
[420223821,1775799536600,-806.87545137,0.00046506,30]
[420223822,1775799536673,-3106.804742,0.00046506,120]
[420223823,1775799536733,-500.0,0.00046506,120]
[420223824,1775799536794,-500.0,0.00046506,120]
[420223825,1775799536855,-564.27269639,0.00046506,120]
[420223826,1775799536911,-565.89596942,0.00046506,120]
[420223827,1775799536973,-500.0,0.00046506,120]
[420223828,1775799537033,-279.50316739,0.00046506,120]
[420223829,1775799537093,-500.0,0.00046506,120]
[420223830,1775799537154,-500.0,0.00046506,120]
[420223831,1775799537216,-500.0,0.00046506,120]
[420223832,1775799537280,-500.0,0.00046506,120]
[420223833,1775799537358,-500.0,0.00046506,120]
[420223834,1775799537515,-576.87915004,0.00046506,120]
[420223835,1775799537592,-2000.0,0.00046506,120]
[420223836,1775799537667,-500.0,0.00046506,120]
[420223837,1775799537742,-500.0,0.00046506,120]
[420223838,1775799537806,-500.0,0.00046506,120]
[420223839,1775799537876,-500.0,0.00046506,120]
[420223840,1775799537979,-459.570358,0.00046506,120]
[420223841,1775799538076,-2000.0,0.00046506,120]
[420223842,1775799538166,-2000.0,0.00046506,120]
[420223843,1775799538376,-310836.10751419,0.00046506,30]
[420223845,1775799626240,340.0,0.0001,30]
[420223846,1775799650137,175.57,9e-05,3]
[420223852,1775800232042,-250.0,0.00013,2]
[420223853,1775800232054,-510.0,0.000131,2]
[420223854,1775800232067,-100.71052593,0.00013698,10]
[420223855,1775800232080,-399.28947407,0.00013698,10]
[420223856,1775800232090,-500.0,0.00013699,2]
[420223857,1775800232100,-500.0,0.00013699,2]
[420223858,1775800232114,-166.66,0.00014036,2]
[420223859,1775800232125,-200.0,0.00014191,2]
[420223860,1775800232138,-3240.0,0.00014244,2]
[420223861,1775800232147,-300.0,0.000143,2]
[420223862,1775800232163,-300.0,0.000143,2]
[420223863,1775800232177,-300.0,0.000143,2]
[420223864,1775800232187,-150.0,0.000143,2]
[420223865,1775800232201,-2500.0,0.000143,2]
[420223866,1775800232222,-2500.0,0.000143,2]
[420223867,1775800232232,-2500.0,0.000143,2]
[420223868,1775800232247,-2500.0,0.000143,2]
[420223869,1775800232270,-300.0,0.000143,2]
[420223870,1775800232280,-300.0,0.000143,2]
[420223871,1775800232290,-500.0,0.000143,2]
[420223872,1775800232299,-166.66,0.00014331,2]
[420223873,1775800232309,-200.0,0.00014349,2]
[420223874,1775800232319,-1852.42,0.00014371,2]
[420223875,1775800232328,-905.77,0.00014578,2]
[420223876,1775800232337,-166.66,0.00014626,2]
[420223877,1775800232345,-150.0,0.00014789,2]
[420223878,1775800232353,-168.0,0.00014835,2]
[420223879,1775800232361,-166.66,0.00014922,2]
[420223880,1775800232370,-300.0,0.00015,2]
[420223881,1775800232379,-150.0,0.00015,2]
[420223882,1775800232387,-9600.0,0.000151,5]
[420223883,1775800232395,-168.0,0.00015147,2]
[420223884,1775800232404,-510.0,0.00015191,3]
[420223885,1775800232413,-150.0,0.000152,2]
[420223886,1775800232422,-150.39907194,0.000152,2]
[420223887,1775800232431,-19300.0,0.000152,5]
[420223888,1775800232439,-24773.2443,0.0001521,2]
[420223889,1775800232447,-166.66,0.00015217,2]
[420223890,1775800232457,-168.0,0.00015296,2]
[420223891,1775800232466,-18655.94907894,0.000153,5]
[420223892,1775800232479,-10244.05092106,0.000153,5]
[420223894,1775800232488,-29999.99,0.0001531,2]
[420223896,1775800232496,-22055.93,0.0001531,2]
[420223898,1775800232507,-1583.0,0.00015325,2]
[420223900,1775800232520,-168.0,0.00015386,2]
[420223902,1775800232530,-2685.65129381,0.000154,5]
[420223904,1775800232543,-7799.80473265,0.000154,5]
[420223907,1775800232568,-2857.92,0.000154,5]
[420223910,1775800232587,-500.0,0.000154,5]
[420223926,1775800238245,-463.97548665,0.00015225,2]
[420223927,1775800238256,-24756.62397354,0.000154,5]
[420223928,1775800238267,-168.0,0.00015489,2]
[420223929,1775800238283,-168.0,0.00015494,2]
[420223930,1775800238293,-500.0,0.00015499,2]
[420223931,1775800238303,-500.0,0.00015499,2]
[420223932,1775800238313,-500.0,0.00015499,2]
[420223933,1775800238331,-500.0,0.00015499,2]
[420223934,1775800238342,-500.0,0.00015499,2]
[420223935,1775800238353,-500.0,0.00015499,2]
[420223936,1775800238369,-500.0,0.00015499,2]
[420223937,1775800238379,-500.0,0.00015499,2]
[420223938,1775800238391,-257.6190277,0.00015499,2]
[420223939,1775800238408,-500.0,0.00015499,2]
[420223940,1775800238417,-174.7544,0.000155,2]
[420223941,1775800238427,-48200.0,0.000155,5]
[420223942,1775800238451,-4000.0,0.00015507,2]
[420223943,1775800238464,-166.66,0.00015513,2]
[420223944,1775800238480,-588.761,0.00015568,2]
[420223945,1775800238502,-168.0,0.00015575,2]
[420223946,1775800238519,-168.0,0.00015589,2]
[420223947,1775800238550,-9600.0,0.000156,5]
[420223948,1775800238579,-878.44469934,0.0001568,2]
[420223949,1775800238599,-3000.0,0.000157,2]
[420223950,1775800238634,-3000.0,0.000157,2]
[420223951,1775800238650,-3000.0,0.000157,2]
[420223952,1775800238682,-3000.0,0.000157,3]
[420223953,1775800238694,-3000.0,0.000157,3]
[420223954,1775800238710,-3000.0,0.000157,3]
[420223955,1775800238727,-3000.0,0.000157,3]
[420223956,1775800238741,-3000.0,0.000157,2]
[420223957,1775800238766,-1000.0,0.000157,2]
[420223958,1775800238778,-1000.0,0.000157,3]
[420223959,1775800238803,-1000.0,0.000157,3]
[420223960,1775800238825,-1000.0,0.000157,2]
[420223961,1775800238843,-9600.0,0.000157,5]
[420223962,1775800238866,-218.19293978,0.000157,2]
[420223964,1775800238881,-168.0,0.00015705,2]
[420223966,1775800238900,-168.0,0.00015706,2]
[420223968,1775800238911,-250.0,0.00015726,2]
[420223970,1775800238928,-250.0,0.00015726,2]
[420223972,1775800238945,-250.0,0.00015726,2]
[420223973,1775800238955,-256.74208515,0.00015726,2]
[420223975,1775800238966,-218.19293976,0.00015729,2]
[420223978,1775800238989,-218.19293976,0.00015757,2]
[420223980,1775800238999,-673.786,0.00015771,2]
[420223981,1775800239023,-622.0,0.00015771,2]
[420223983,1775800239033,-1047.0,0.00015771,2]
[420223986,1775800239047,-1264.0,0.00015771,2]
[420223988,1775800239057,-2471.0,0.00015771,2]
[420223990,1775800239066,-415.0,0.00015771,2]
[420223991,1775800239076,-218.19293976,0.00015786,2]
[420223994,1775800239087,-3000.0,0.000158,3]
[420223996,1775800239100,-3046.0,0.000158,2]
[420223998,1775800239109,-3000.0,0.000158,3]
[420224000,1775800239119,-1000.0,0.000158,2]
[420224002,1775800239128,-1000.0,0.000158,3]
[420224003,1775800239141,-9600.0,0.000158,5]
[420224005,1775800239153,-3001.0,0.000158,2]
[420224007,1775800239164,-218.19293976,0.00015814,2]
[420224009,1775800239175,-218.19293976,0.00015843,2]
[420224011,1775800239189,-218.19293976,0.00015871,2]
[420224014,1775800239200,-500.0,0.00015872,2]
[420224016,1775800239210,-168.0,0.00015882,2]
[420224018,1775800239222,-2000.0,0.0001589,2]
[420224019,1775800239235,-4000.0,0.00015895,2]
[420224022,1775800239246,-201.76,0.00015899,2]
[420224024,1775800239256,-781.11785643,0.000159,2]
[420224025,1775800239265,-18669.80388775,0.000159,2]
[420224028,1775800239281,-5000.0,0.000159,2]
[420224030,1775800239292,-9600.0,0.000159,5]
[420224032,1775800239302,-218.19293976,0.000159,2]
[420224034,1775800239316,-2006.87248876,0.000159,2]
[420224035,1775800239329,-168.0,0.00015922,2]
[420224038,1775800239339,-500.0,0.00015973,2]
[420224040,1775800239350,-155.0,0.00015999,2]
[420224042,1775800239385,-427.67335693,0.00015999,2]
[420224044,1775800239407,-276.89194382,0.00015999,2]
[420224046,1775800239416,-276.89194382,0.00015999,2]
[420224047,1775800239437,-15256.65353105,0.00016,2]
[420224050,1775800239463,-1482.36647638,0.00016,2]
[420224060,1775800239577,-507.71285999,0.00016,2]
[420224063,1775800239589,-14515.27321156,0.00016,2]
[420224090,1775800246112,-463.97548656,0.000153,2]
[420224091,1775800246122,-585.62979956,0.0001568,2]
[420224092,1775800246132,-6023.0,0.00015771,2]
[420224093,1775800246145,-4128.28011709,0.00016,2]
[420224094,1775800246163,-1649.72533135,0.00016,2]
[420224095,1775800246176,-1623.30494545,0.00016,2]
[420224096,1775800246225,-6686.45766305,0.00016,2]
[420224099,1775800247779,-1162.65605572,0.00016,2]
[420224102,1775800249134,-463.97548656,0.00015375,2]
[420224103,1775800249154,-102.18644256,0.0001568,2]
[420224104,1775800249196,-288.23342381,0.0001568,2]
[420224105,1775800249206,-11.76657619,0.00016,2]
[420224106,1775800249242,-15925.43871876,0.00016,2]
[420224110,1775800853073,499.98400062,0.00015,120]
[420224131,1775801433032,-300.0,0.00010699,2]
[420224132,1775801433050,-408.0,0.00010699,2]
[420224133,1775801433064,-7992.0,0.000107,2]
[420224134,1775801433099,-5003.70246202,0.000107,2]
[420224135,1775801433116,-600.0,0.00011769,2]
[420224136,1775801433137,-1779.17671687,0.00011769,2]
[420224137,1775801433147,-250.0,0.00011769,2]
[420224138,1775801433171,-5000.0,0.00011769,2]
[420224139,1775801433181,-250.0,0.00013,2]
[420224140,1775801433190,-510.0,0.000131,2]
[420224141,1775801433210,-153.83,0.0001335,2]
[420224142,1775801433220,-201.09117202,0.00013619,2]
[420224143,1775801433233,-150.0,0.00013699,2]
[420224144,1775801433250,-150.0,0.000138,2]
[420224145,1775801433259,-58742.39888329,0.000138,2]
[420224146,1775801433270,-38252.24507395,0.000138,2]
[420224148,1775801438675,-3404.56,0.000138,2]
[420224149,1775801438727,-1883.84627465,0.000138,2]
[420224162,1775801440730,-1643.93003498,0.000138,2]
[420224166,1775801441336,-875.4065546,0.000138,2]
[420224167,1775801441348,-2365.275,0.000138,2]
[420224168,1775801441360,-2511.0,0.000138,2]
[420224169,1775801441371,-1844.09,0.000138,2]
[420224178,1775801443516,-4313.86787853,0.000138,2]
[420224179,1775801443525,-150.0,0.00013899,2]
[420224180,1775801443534,-41248.07272289,0.000139,2]
[420224181,1775801443543,-250.72028972,0.00014137,2]
[420224182,1775801443556,-4676.08,0.00014204,2]
[420224183,1775801443565,-1838.58,0.00014226,2]
[420224184,1775801443574,-150.0,0.00014257,2]
[420224185,1775801443583,-500.0,0.000144,2]
[420224192,1775801443963,-500.0,0.000144,2]
[420224193,1775801443973,-500.0,0.000144,2]
[420224194,1775801443991,-500.0,0.000144,2]
[420224195,1775801444008,-500.0,0.000144,2]
[420224196,1775801444017,-500.0,0.000144,2]
[420224197,1775801444049,-500.0,0.000144,2]
[420224198,1775801444058,-500.0,0.000144,2]
[420224200,1775801444092,-500.0,0.000144,2]
[420224201,1775801444102,-249.33767773,0.000144,2]
[420224202,1775801444117,-2000.0,0.00014543,2]
[420224204,1775801444128,-162.0,0.0001472,2]
[420224205,1775801444144,-10111.22,0.00014757,2]
[420224206,1775801444157,-583.49,0.00014758,2]
[420224207,1775801444169,-736.78,0.00015,2]
[420224208,1775801444188,-300.0,0.00015,2]
[420224209,1775801444201,-174.7617,0.00015,2]
[420224210,1775801444215,-510.0,0.00015011,3]
[420224211,1775801444229,-255.0,0.00015025,2]
[420224212,1775801444244,-187.78006525,0.00015099,2]
[420224213,1775801444253,-500.0,0.000151,5]
[420224214,1775801444278,-3669.6966,0.0001511,2]
[420224215,1775801444294,-2713.07529166,0.00015117,2]
[420224216,1775801444315,-210.99239534,0.0001519,2]
[420224217,1775801444327,-500.0,0.0001519,2]
[420224218,1775801444343,-2500.0,0.00015191,2]
[420224219,1775801444369,-1000.0,0.000152,5]
[420224220,1775801444387,-601.3376128,0.00015201,2]
[420224221,1775801444419,-1324.95499728,0.00015201,2]
[420224222,1775801444442,-200.0,0.00015201,2]
[420224223,1775801444458,-2713.07529165,0.00015204,2]
[420224224,1775801444492,-741.22158889,0.00015217,2]
[420224225,1775801444512,-2713.07529165,0.00015291,2]
[420224226,1775801444544,-1500.0,0.000153,5]
[420224227,1775801444556,-277.49986889,0.0001532,2]
[420224228,1775801444585,-256.93614142,0.0001532,2]
[420224229,1775801444595,-2713.07529165,0.00015378,2]
[420224230,1775801444638,-1360.7105,0.000154,2]
[420224231,1775801444655,-2000.0,0.000154,5]
[420224232,1775801444688,-2713.07529165,0.00015465,2]
[420224233,1775801444711,-1185.38,0.00015471,2]
[420224234,1775801444733,-4555.38,0.00015471,2]
[420224235,1775801444752,-768.0,0.00015474,2]
[420224236,1775801444787,-768.0,0.00015481,2]
[420224237,1775801444811,-583.49,0.00015496,2]
[420224238,1775801444823,-2500.0,0.000155,5]